fUSD/lending_fUSD_20250806
["ID","MTS","AMOUNT","RATE_DAILY","PERIOD"]
[377601815,1754448873322,-1752.0,0.00039726,14]
[377601816,1754448873332,-1827.77,0.00039726,14]
[377601817,1754448873342,-710.17,0.00039726,14]
[377601818,1754448873353,-2123.08,0.00039726,14]
[377601819,1754448873362,-400.0,0.00039726,14]
[377601820,1754448873372,-2320.18,0.00039726,14]
[377601821,1754448873382,-541.8,0.00039726,14]
[377601822,1754448873392,-3809.64,0.00039726,14]
[377601823,1754448873401,-1290.75,0.00039726,14]
[377601824,1754448873411,-2988.22,0.00039726,14]
[377601825,1754448873422,-432.19,0.00039726,14]
[377601826,1754448873431,-650.32,0.00039726,14]
[377601827,1754448873441,-786.46,0.00039726,14]
[377601828,1754448873450,-2067.35,0.00039726,14]
[377601829,1754448873459,-1893.56,0.00039726,14]
[377601830,1754448873469,-436.89,0.00039726,14]
[377601831,1754448873479,-1091.29,0.00039726,14]
[377601832,1754448873488,-2121.86,0.00039726,14]
[377601833,1754448873497,-403.94,0.00039726,14]
[377601834,1754448873507,-2572.93,0.00039726,14]
[377601835,1754448873516,-1090.58,0.00039726,14]
[377601836,1754448873526,-2572.33,0.00039726,14]
[377601837,1754448873536,-1310.5,0.00039726,14]
[377601838,1754448873546,-1680.95,0.00039726,14]
[377601839,1754448873556,-1082.92,0.00039726,14]
[377601840,1754448873565,-569.78,0.00039726,14]
[377601841,1754448873574,-456.45,0.00039726,14]
[377601842,1754448873583,-1882.26,0.00039726,14]
[377601843,1754448873592,-541.54,0.00039726,14]
[377601844,1754448873602,-615.57,0.00039726,14]
[377601845,1754448873611,-819.87,0.00039726,14]
[377601846,1754448873621,-1272.84,0.00039726,14]
[377601847,1754448873631,-2393.94,0.00039726,14]
[377601848,1754448873640,-571.97,0.00039726,14]
[377601849,1754448873649,-472.45,0.00039726,14]
[377601850,1754448873659,-1821.93,0.00039726,14]
[377601851,1754448873670,-400.0,0.00039726,14]
[377601852,1754448873679,-2205.0,0.00039726,14]
[377601853,1754448873689,-2459.29,0.00039726,14]
[377601854,1754448873698,-1723.53,0.00039726,14]
[377601855,1754448873709,-1328.89,0.00039726,14]
[377601856,1754448873718,-400.0,0.00039726,14]
[377601857,1754448873727,-1450.07,0.00039726,14]
[377601858,1754448873736,-400.0,0.00039726,14]
[377601859,1754448873746,-400.0,0.00039726,14]
[377601860,1754448873755,-498.72,0.00039726,14]
[377601861,1754448873764,-2050.67,0.00039726,14]
[377601862,1754448873774,-1998.0,0.00039726,14]
[377601863,1754448873783,-400.0,0.00039726,14]
[377601864,1754448873794,-2177.61,0.00039726,14]
[377601865,1754448873803,-565.91,0.00039726,14]
[377601866,1754448873814,-2230.94,0.00039726,14]
[377601867,1754448873824,-1023.05,0.00039726,14]
[377601868,1754448873833,-1541.91,0.00039726,14]
[377601869,1754448873842,-1947.18,0.00039726,14]
[377601870,1754448873852,-518.06,0.00039726,14]
[377601871,1754448873862,-1701.37,0.00039726,14]
[377601872,1754448873871,-1840.41,0.00039726,14]
[377601873,1754448873880,-3617.37,0.00039726,14]
[377601874,1754448873890,-1293.69,0.00039726,14]
[377601875,1754448873900,-171.02340275,0.00039726,14]
[377601876,1754448873912,-1743.92,0.00039726,14]
[377601877,1754448873922,-1163.86,0.00039726,14]
[377601878,1754448873933,-2851.05,0.00039726,14]
[377601879,1754448873942,-2062.42,0.00039726,14]
[377601880,1754448873952,-400.0,0.00039726,14]
[377601881,1754448873963,-2082.15,0.00039726,14]
[377601882,1754448873973,-2004.98,0.00039726,14]
[377601883,1754448873984,-578.97,0.00039726,14]
[377601884,1754448873994,-1802.74,0.00039726,14]
[377601885,1754448874004,-1140.6,0.00039726,14]
[377601886,1754448874013,-1704.62,0.00039726,14]
[377601887,1754448874022,-400.0,0.00039726,14]
[377601888,1754448874031,-2059.67,0.00039726,14]
[377601889,1754448874039,-400.0,0.00039726,14]
[377601890,1754448874048,-400.0,0.00039726,14]
[377601891,1754448874057,-2008.93,0.00039726,14]
[377601892,1754448874067,-1042.45,0.00039726,14]
[377601893,1754448874077,-1854.33,0.00039726,14]
[377601894,1754448874086,-2421.14,0.00039726,14]
[377601895,1754448874095,-904.89,0.00039726,14]
[377601896,1754448874105,-1949.77,0.00039726,14]
[377601897,1754448874114,-439.26,0.00039726,14]
[377601898,1754448874123,-717.97,0.00039726,14]
[377601899,1754448874132,-944.69,0.00039726,14]
[377601900,1754448874142,-1533.65,0.00039726,14]
[377601901,1754448874151,-564.92,0.00039726,14]
[377601902,1754448874160,-995.71,0.00039726,14]
[377601903,1754448874170,-1068.1,0.00039726,14]
[377601904,1754448874180,-400.0,0.00039726,14]
[377601905,1754448874189,-1225.03,0.00039726,14]
[377601906,1754448874198,-400.0,0.00039726,14]
[377601907,1754448874207,-423.39,0.00039726,14]
[377601908,1754448874216,-5248.2,0.00039726,14]
[377601909,1754448874224,-400.0,0.00039726,14]
[377601910,1754448874233,-463.8,0.00039726,14]
[377601911,1754448874242,-400.0,0.00039726,14]
[377601912,1754448874251,-400.0,0.00039726,14]
[377601913,1754448874260,-1930.39,0.00039726,14]
[377601914,1754448874269,-465.73,0.00039726,14]
[377601915,1754448874280,-919.64,0.00039726,14]
[377601916,1754448874303,-2409.79,0.00039726,14]
[377601917,1754448874312,-481.93,0.00039726,14]
[377601918,1754448874322,-680.58,0.00039726,14]
[377601919,1754448874331,-1276.5,0.00039726,14]
[377601920,1754448874341,-2002.8,0.00039726,14]
[377601921,1754448874350,-1671.93,0.00039726,14]
[377601922,1754448874359,-1873.43,0.00039726,14]
[377601923,1754448874368,-400.0,0.00039726,14]
[377601924,1754448874378,-3610.35,0.00039726,14]
[377601925,1754448874387,-1790.5,0.00039726,14]
[377601926,1754448874397,-1409.58,0.00039726,14]
[377601927,1754448874407,-589.06,0.00039726,14]
[377601928,1754448874417,-1784.3,0.00039726,14]
[377601929,1754448874427,-493.42,0.00039726,14]
[377601930,1754448874436,-769.03,0.00039726,14]
[377601931,1754448874444,-400.0,0.00039726,14]
[377601932,1754448874523,-1966.76,0.00039726,14]
[377601933,1754448874532,-446.21,0.00039726,14]
[377601934,1754448874541,-1081.98,0.00039726,14]
[377601935,1754448874550,-974.88,0.00039726,14]
[377601936,1754448874558,-662.34,0.00039726,14]
[377601937,1754448874567,-400.0,0.00039726,14]
[377601938,1754448874576,-861.94,0.00039726,14]
[377601939,1754448874585,-1264.89,0.00039726,14]
[377601940,1754448874594,-2151.64,0.00039726,14]
[377601941,1754448874603,-2193.87,0.00039726,14]
[377601942,1754448874611,-950.01,0.00039726,14]
[377601943,1754448874620,-433.2,0.00039726,14]
[377601944,1754448874629,-2313.76,0.00039726,14]
[377601945,1754448874638,-2093.1,0.00039726,14]
[377601946,1754448874646,-2798.78,0.00039726,14]
[377601947,1754448874655,-379.82959431,0.00039726,14]
[377601948,1754448874664,-1069.38,0.00039726,14]
[377601949,1754448874673,-1990.46,0.00039726,14]
[377601950,1754448874682,-825.71,0.00039726,14]
[377601951,1754448874690,-1160.89,0.00039726,14]
[377601952,1754448874699,-552.31,0.00039726,14]
[377601953,1754448874708,-2248.31,0.00039726,14]
[377601954,1754448874716,-534.6,0.00039726,14]
[377601955,1754448874725,-2830.73,0.00039726,14]
[377601956,1754448874734,-400.0,0.00039726,14]
[377601957,1754448874743,-877.07,0.00039726,14]
[377601958,1754448874751,-636.63,0.00039726,14]
[377601959,1754448874761,-1151.11,0.00039726,14]
[377601960,1754448874770,-2866.67,0.00039726,14]
[377601961,1754448874779,-1232.95,0.00039726,14]
[377601962,1754448874788,-404.16,0.00039726,14]
[377601963,1754448874797,-663.46,0.00039726,14]
[377601964,1754448874806,-1463.25,0.00039726,14]
[377601965,1754448874815,-506.01,0.00039726,14]
[377601966,1754448874824,-2179.89,0.00039726,14]
[377601967,1754448874833,-1734.55,0.00039726,14]
[377601968,1754448874842,-2812.46,0.00039726,14]
[377601969,1754448874851,-439.11658703,0.00039726,14]
[377601970,1754448874860,-4617.44,0.00039726,14]
[377601971,1754448874869,-2023.55,0.00039726,14]
[377601972,1754448874879,-3963.12,0.00039726,14]
[377601973,1754448874888,-2294.7,0.00039726,14]
[377601974,1754448874897,-1684.51,0.00039726,14]
[377601975,1754448874906,-1056.52,0.00039726,14]
[377601976,1754448874921,-3017.99,0.00039726,14]
[377601977,1754448874930,-523.66,0.00039726,14]
[377601978,1754448874939,-586.88,0.00039726,14]
[377601979,1754448874948,-914.87,0.00039726,14]
[377601980,1754448874959,-435.03,0.00039726,14]
[377601981,1754448874968,-534.1,0.00039726,14]
[377601982,1754448874977,-933.36,0.00039726,14]
[377601983,1754448874988,-611.39,0.00039726,14]
[377601984,1754448874997,-2092.3,0.00039726,14]
[377601985,1754448875006,-1545.14,0.00039726,14]
[377601986,1754448875015,-400.0,0.00039726,14]
[377601987,1754448875024,-1534.85,0.00039726,14]
[377601988,1754448875033,-796.41,0.00039726,14]
[377601989,1754448875042,-400.0,0.00039726,14]
[377601990,1754448875050,-1665.11,0.00039726,14]
[377601991,1754448875059,-1954.64,0.00039726,14]
[377601992,1754448875068,-2159.33,0.00039726,14]
[377601993,1754448875076,-1365.89,0.00039726,14]
[377601994,1754448875085,-1952.38,0.00039726,14]
[377601995,1754448875094,-5160.74,0.00039726,14]
[377601996,1754448875103,-1216.69,0.00039726,14]
[377601997,1754448875112,-1829.55,0.00039726,14]
[377601998,1754448875121,-400.0,0.00039726,14]
[377601999,1754448875129,-2121.64,0.00039726,14]
[377602000,1754448875138,-945.39,0.00039726,14]
[377602001,1754448875146,-2518.04,0.00039726,14]
[377602002,1754448875155,-859.36,0.00039726,2]
[377602003,1754448875164,-2523.11,0.00039726,14]
[377602004,1754448875174,-793.99,0.00039726,14]
[377602005,1754448875187,-2978.88,0.00039726,14]
[377602006,1754448875196,-1289.03,0.00039726,14]
[377602007,1754448875205,-381.71575299,0.00039726,14]
[377602008,1754448875214,-2721.87,0.00039726,14]
[377602009,1754448875223,-833.08,0.00039726,14]
[377602010,1754448875232,-532.72,0.00039726,14]
[377602011,1754448875241,-400.0,0.00039726,14]
[377602012,1754448875250,-601.08,0.00039726,14]
[377602013,1754448875259,-1073.41,0.00039726,14]
[377602014,1754448875269,-3987.14,0.00039726,14]
[377602015,1754448875277,-412.5,0.00039726,14]
[377602016,1754448875286,-400.0,0.00039726,14]
[377602017,1754448875295,-2539.32,0.00039726,14]
[377602018,1754448875304,-2655.03,0.00039726,14]
[377602019,1754448875312,-500.14,0.00039726,14]
[377602020,1754448875321,-1245.68,0.00039726,14]
[377602021,1754448875330,-1000.0,0.00039726,30]
[377602022,1754448875338,-828.5,0.00039726,14]
[377602023,1754448875347,-3437.75,0.00039726,14]
[377602024,1754448875356,-3583.37,0.00039726,14]
[377602025,1754448875365,-788.77,0.00039726,14]
[377602026,1754448875374,-2735.46,0.00039726,14]
[377602027,1754448875383,-1688.61,0.00039726,14]
[377602028,1754448875392,-4387.31,0.00039726,14]
[377602029,1754448875401,-406.24,0.00039726,14]
[377602030,1754448875409,-3134.6,0.00039726,14]
[377602031,1754448875420,-735.52,0.00039726,14]
[377602032,1754448875429,-3166.75,0.00039726,14]
[377602033,1754448875437,-400.0,0.00039726,14]
[377602034,1754448875446,-2255.41,0.00039726,14]
[377602035,1754448875455,-2297.5,0.00039726,14]
[377602036,1754448875463,-741.97,0.00039726,14]
[377602037,1754448875472,-654.96,0.00039726,14]
[377602038,1754448875482,-1381.51,0.00039726,14]
[377602039,1754448875492,-74281.09,0.00039726,14]
[377602040,1754448875501,-3216.0,0.00039726,14]
[377602041,1754448875511,-841.14,0.00039726,14]
[377602042,1754448875519,-1206.25,0.00039726,14]
[377602043,1754448875528,-2750.06,0.00039726,14]
[377602044,1754448875537,-2322.06,0.00039726,14]
[377602045,1754448875546,-1570.84,0.00039726,14]
[377602046,1754448875555,-1828.82,0.00039726,14]
[377602047,1754448875565,-400.0,0.00039726,14]
[377602048,1754448875574,-1492.94,0.00039726,14]
[377602049,1754448875583,-434.35,0.00039726,14]
[377602050,1754448875592,-761.7,0.00039726,14]
[377602051,1754448875601,-519.39,0.00039726,14]
[377602052,1754448875611,-2855.56,0.00039726,14]
[377602053,1754448875620,-3362.96,0.00039726,14]
[377602054,1754448875628,-2258.55,0.00039726,14]
[377602055,1754448875637,-833.52,0.00039726,14]
[377602056,1754448875646,-2733.42,0.00039726,14]
[377602057,1754448875655,-1961.2,0.00039726,14]
[377602058,1754448875664,-2875.37,0.00039726,14]
[377602059,1754448875674,-1544.56,0.00039726,14]
[377602060,1754448875683,-400.0,0.00039726,14]
[377602061,1754448875692,-1888.87,0.00039726,14]
[377602062,1754448875701,-2484.35,0.00039726,14]
[377602063,1754448875710,-428.48,0.00039726,14]
[377602064,1754448875719,-400.0,0.00039726,14]
[377602065,1754448875727,-406.59,0.00039726,14]
[377602066,1754448875736,-2248.43,0.00039726,14]
[377602067,1754448875745,-1187.63,0.00039726,14]
[377602068,1754448875754,-409.76,0.00039726,14]
[377602069,1754448875763,-1229.19,0.00039726,14]
[377602070,1754448875772,-537.84,0.00039726,14]
[377602071,1754448875781,-455.67,0.00039726,14]
[377602072,1754448875790,-2047.91,0.00039726,14]
[377602073,1754448875799,-551.67,0.00039726,14]
[377602074,1754448875808,-1281.96,0.00039726,14]
[377602075,1754448875817,-1862.83,0.00039726,14]
[377602076,1754448875826,-725.39,0.00039726,14]
[377602077,1754448875836,-1987.91,0.00039726,14]
[377602078,1754448875845,-1310.3,0.00039726,14]
[377602079,1754448875854,-450.47,0.00039726,14]
[377602080,1754448875864,-2884.45,0.00039726,14]
[377602081,1754448875873,-2156.58,0.00039726,14]
[377602082,1754448875882,-2626.5,0.00039726,14]
[377602083,1754448875891,-1939.4,0.00039726,14]
[377602084,1754448875900,-743.81,0.00039726,14]
[377602085,1754448875909,-1720.47,0.00039726,14]
[377602086,1754448875922,-1041.11,0.00039726,14]
[377602087,1754448875931,-1253.31,0.00039726,14]
[377602088,1754448875940,-1962.72,0.00039726,14]
[377602089,1754448875950,-833.02,0.00039726,14]
[377602090,1754448875960,-400.0,0.00039726,14]
[377602091,1754448875969,-2527.58,0.00039726,14]
[377602092,1754448875979,-400.0,0.00039726,14]
[377602093,1754448875991,-1233.26,0.00039726,14]
[377602094,1754448876001,-2742.82,0.00039726,14]
[377602095,1754448876011,-677.09,0.00039726,14]
[377602096,1754448876020,-1089.73,0.00039726,14]
[377602097,1754448876030,-2514.73,0.00039726,14]
[377602098,1754448876039,-2050.4,0.00039726,14]
[377602099,1754448876048,-761.42,0.00039726,14]
[377602100,1754448876058,-479.36,0.00039726,14]
[377602101,1754448876067,-485.39,0.00039726,14]
[377602102,1754448876076,-6570.38,0.00039726,14]
[377602103,1754448876085,-1510.11,0.00039726,14]
[377602104,1754448876093,-605.06,0.00039726,14]
[377602105,1754448876102,-953.45,0.00039726,14]
[377602106,1754448876111,-2032.65,0.00039726,14]
[377602107,1754448876119,-2555.58,0.00039726,14]
[377602108,1754448876128,-4421.93,0.00039726,14]
[377602109,1754448876137,-498.52720129,0.00039726,14]
[377602110,1754448876146,-2529.46,0.00039726,14]
[377602111,1754448876155,-814.86,0.00039726,14]
[377602112,1754448876163,-421.21,0.00039726,14]
[377602113,1754448876173,-3180.14,0.00039726,14]
[377602114,1754448876183,-2230.29,0.00039726,14]
[377602115,1754448876192,-1009.38,0.00039726,14]
[377602116,1754448876201,-584.03,0.00039726,14]
[377602117,1754448876211,-2184.0,0.00039726,14]
[377602118,1754448876220,-400.0,0.00039726,14]
[377602119,1754448876229,-2402.56,0.00039726,14]
[377602120,1754448876238,-759.09,0.00039726,14]
[377602121,1754448876247,-679.71,0.00039726,14]
[377602122,1754448876256,-2007.28,0.00039726,14]
[377602123,1754448876265,-795.77,0.00039726,14]
[377602124,1754448876274,-812.95,0.00039726,14]
[377602125,1754448876284,-1680.57,0.00039726,14]
[377602126,1754448876307,-2432.32,0.00039726,14]
[377602127,1754448876317,-478.98,0.00039726,14]
[377602128,1754448876326,-400.0,0.00039726,14]
[377602129,1754448876335,-971.83,0.00039726,14]
[377602130,1754448876345,-2915.89,0.00039726,14]
[377602131,1754448876354,-3185.2,0.00039726,14]
[377602132,1754448876363,-653.74,0.00039726,14]
[377602133,1754448876372,-1940.76,0.00039726,14]
[377602134,1754448876381,-400.0,0.00039726,14]
[377602135,1754448876390,-992.11,0.00039726,14]
[377602136,1754448876399,-1082.53,0.00039726,14]
[377602137,1754448876408,-408.83,0.00039726,14]
[377602138,1754448876417,-2661.52,0.00039726,14]
[377602139,1754448876426,-816.39,0.00039726,14]
[377602140,1754448876435,-1599.41,0.00039726,14]
[377602141,1754448876444,-1313.46,0.00039726,14]
[377602142,1754448876453,-1013.74,0.00039726,14]
[377602143,1754448876462,-2175.59,0.00039726,14]
[377602144,1754448876470,-3089.75,0.00039726,14]
[377602145,1754448876480,-1040.53,0.00039726,14]
[377602146,1754448876489,-2286.88,0.00039726,14]
[377602147,1754448876498,-1019.92,0.00039726,14]
[377602148,1754448876507,-1867.43,0.00039726,14]
[377602149,1754448876515,-2061.99,0.00039726,14]
[377602150,1754448876524,-2443.54,0.00039726,14]
[377602151,1754448876533,-1546.2,0.00039726,14]
[377602152,1754448876542,-400.0,0.00039726,14]
[377602153,1754448876551,-400.0,0.00039726,14]
[377602154,1754448876560,-3761.33,0.00039726,14]
[377602155,1754448876570,-1315.11,0.00039726,14]
[377602156,1754448876579,-1432.92,0.00039726,14]
[377602157,1754448876588,-1047.25,0.00039726,14]
[377602158,1754448876598,-1175.98,0.00039726,14]
[377602159,1754448876608,-828.22,0.00039726,14]
[377602160,1754448876620,-478.88,0.00039726,14]
[377602161,1754448876630,-500.0,0.00039726,45]
[377602162,1754448876641,-732.62,0.00039726,14]
[377602163,1754448876651,-813.13,0.00039726,14]
[377602164,1754448876660,-1402.25,0.00039726,14]
[377602165,1754448876670,-431.16,0.00039726,14]
[377602166,1754448876679,-2113.48,0.00039726,14]
[377602167,1754448876689,-453.4,0.00039726,14]
[377602168,1754448876701,-682.09,0.00039726,14]
[377602169,1754448876712,-3720.93,0.00039726,14]
[377602170,1754448876722,-1902.77,0.00039726,14]
[377602171,1754448876732,-1870.07,0.00039726,14]
[377602172,1754448876741,-578.92,0.00039726,14]
[377602173,1754448876751,-449.08,0.00039726,7]
[377602174,1754448876761,-744.99,0.00039726,14]
[377602175,1754448876771,-400.0,0.00039726,14]
[377602176,1754448876779,-2192.19,0.00039726,14]
[377602177,1754448876788,-1451.6,0.00039726,14]
[377602178,1754448876798,-1145.83,0.00039726,14]
[377602179,1754448876808,-1448.11,0.00039726,14]
[377602180,1754448876817,-2132.59,0.00039726,14]
[377602181,1754448876826,-2007.5,0.00039726,14]
[377602182,1754448876835,-2062.82,0.00039726,14]
[377602183,1754448876844,-2903.16,0.00039726,14]
[377602184,1754448876852,-1366.96,0.00039726,14]
[377602185,1754448876863,-400.0,0.00039726,14]
[377602186,1754448876876,-3679.16,0.00039726,14]
[377602187,1754448876892,-2707.72,0.00039726,14]
[377602188,1754448876902,-3514.4,0.00039726,14]
[377602189,1754448876916,-2716.46,0.00039726,14]
[377602190,1754448876924,-1251.76,0.00039726,14]
[377602191,1754448876934,-2012.91,0.00039726,14]
[377602192,1754448876943,-1611.49,0.00039726,14]
[377602193,1754448876953,-2266.27,0.00039726,14]
[377602194,1754448876962,-460.8,0.00039726,14]
[377602195,1754448876971,-400.0,0.00039726,14]
[377602196,1754448876981,-604.96,0.00039726,14]
[377602197,1754448876992,-801.6,0.00039726,14]
[377602198,1754448877001,-3442.72,0.00039726,14]
[377602199,1754448877010,-606.74,0.00039726,14]
[377602200,1754448877020,-3610.57,0.00039726,14]
[377602201,1754448877030,-580.15,0.00039726,14]
[377602202,1754448877039,-881.76,0.00039726,14]
[377602203,1754448877048,-1967.92,0.00039726,14]
[377602204,1754448877057,-393.02026986,0.00039726,14]
[377602205,1754448877066,-826.11,0.00039726,14]
[377602206,1754448877075,-826.95,0.00039726,14]
[377602207,1754448877083,-958.68,0.00039726,14]
[377602208,1754448877092,-2698.14,0.00039726,14]
[377602209,1754448877101,-2097.04,0.00039726,14]
[377602210,1754448877111,-1738.83,0.00039726,14]
[377602211,1754448877120,-468.56,0.00039726,14]
[377602212,1754448877129,-1550.41,0.00039726,14]
[377602213,1754448877138,-1152.57,0.00039726,14]
[377602214,1754448877147,-2348.84,0.00039726,14]
[377602215,1754448877156,-2945.22,0.00039726,14]
[377602216,1754448877167,-2061.05,0.00039726,14]
[377602217,1754448877176,-522.01,0.00039726,14]
[377602218,1754448877186,-1971.84,0.00039726,14]
[377602219,1754448877195,-986.73,0.00039726,14]
[377602220,1754448877204,-1022.7,0.00039726,14]
[377602221,1754448877213,-1605.08,0.00039726,14]
[377602222,1754448877222,-883.72,0.00039726,14]
[377602223,1754448877230,-2216.79,0.00039726,14]
[377602224,1754448877239,-2744.57,0.00039726,14]
[377602225,1754448877248,-1176.86,0.00039726,14]
[377602226,1754448877257,-2001.07,0.00039726,14]
[377602227,1754448877266,-1708.89,0.00039726,14]
[377602228,1754448877275,-2209.33,0.00039726,14]
[377602229,1754448877284,-400.0,0.00039726,14]
[377602230,1754448877293,-2625.94,0.00039726,14]
[377602231,1754448877302,-1659.02,0.00039726,14]
[377602232,1754448877312,-1132.6,0.00039726,14]
[377602233,1754448877321,-343.23611952,0.00039726,14]
[377602234,1754448877330,-2337.97,0.00039726,14]
[377602235,1754448877339,-1295.16,0.00039726,14]
[377602236,1754448877348,-1663.17,0.00039726,14]
[377602237,1754448877357,-2361.68,0.00039726,14]
[377602238,1754448877366,-2090.44,0.00039726,14]
[377602239,1754448877375,-1513.53,0.00039726,14]
[377602240,1754448877384,-949.45,0.00039726,14]
[377602241,1754448877393,-2974.22,0.00039726,14]
[377602242,1754448877402,-468.15,0.00039726,14]
[377602243,1754448877410,-702.26,0.00039726,14]
[377602244,1754448877420,-425.69,0.00039726,14]
[377602245,1754448877429,-2095.59,0.00039726,14]
[377602246,1754448877438,-467.46,0.00039726,14]
[377602247,1754448877447,-1148.8,0.00039726,14]
[377602248,1754448877456,-954.12,0.00039726,14]
[377602249,1754448877465,-2717.6,0.00039726,14]
[377602250,1754448877474,-2021.48,0.00039726,14]
[377602251,1754448877483,-662.22,0.00039726,14]
[377602252,1754448877493,-2546.61,0.00039726,14]
[377602253,1754448877503,-1740.13,0.00039726,14]
[377602254,1754448877513,-1198.3,0.00039726,14]
[377602255,1754448877523,-2962.89,0.00039726,14]
[377602256,1754448877533,-504.61,0.00039726,14]
[377602257,1754448877542,-400.0,0.00039726,14]
[377602258,1754448877553,-2356.45,0.00039726,14]
[377602259,1754448877562,-423.2,0.00039726,14]
[377602260,1754448877573,-400.0,0.00039726,14]
[377602261,1754448877583,-2575.51,0.00039726,14]
[377602262,1754448877596,-400.0,0.00039726,14]
[377602263,1754448877608,-2130.93,0.00039726,14]
[377602264,1754448877617,-3248.58,0.00039726,14]
[377602265,1754448877627,-888.56,0.00039726,14]
[377602266,1754448877636,-547.97,0.00039726,14]
[377602267,1754448877646,-1766.95,0.00039726,14]
[377602268,1754448877656,-3016.17,0.00039726,14]
[377602269,1754448877666,-2668.39,0.00039726,14]
[377602270,1754448877674,-496.21,0.00039726,14]
[377602271,1754448877684,-3791.14,0.00039726,14]
[377602272,1754448877694,-5306.84,0.00039726,14]
[377602273,1754448877705,-727.35,0.00039726,14]
[377602274,1754448877714,-400.0,0.00039726,14]
[377602275,1754448877724,-605.14,0.00039726,14]
[377602276,1754448877734,-975.71,0.00039726,14]
[377602277,1754448877744,-3485.41,0.00039726,14]
[377602278,1754448877754,-2009.81,0.00039726,14]
[377602279,1754448877764,-400.0,0.00039726,14]
[377602280,1754448877773,-2054.01,0.00039726,14]
[377602281,1754448877783,-400.0,0.00039726,14]
[377602282,1754448877792,-856.83,0.00039726,14]
[377602283,1754448877801,-1517.52,0.00039726,14]
[377602284,1754448877811,-2179.98,0.00039726,14]
[377602285,1754448877820,-1388.31,0.00039726,14]
[377602286,1754448877829,-957.04,0.00039726,14]
[377602287,1754448877838,-400.0,0.00039726,14]
[377602288,1754448877848,-2558.14,0.00039726,14]
[377602289,1754448877858,-410.84,0.00039726,14]
[377602290,1754448877868,-1672.02,0.00039726,14]
[377602291,1754448877879,-1561.14,0.00039726,14]
[377602292,1754448877888,-2448.42,0.00039726,14]
[377602293,1754448877897,-1920.97,0.00039726,14]
[377602294,1754448877911,-1718.51,0.00039726,14]
[377602295,1754448877923,-1537.42,0.00039726,14]
[377602296,1754448877933,-2286.3,0.00039726,14]
[377602297,1754448877942,-400.0,0.00039726,14]
[377602298,1754448877951,-1497.84,0.00039726,14]
[377602299,1754448877962,-818.29,0.00039726,2]
[377602300,1754448877971,-615.01,0.00039726,14]
[377602301,1754448877979,-400.0,0.00039726,14]
[377602302,1754448877989,-2660.98,0.00039726,14]
[377602303,1754448877998,-1193.12,0.00039726,14]
[377602304,1754448878008,-2817.66,0.00039726,14]
[377602305,1754448878017,-2306.54,0.00039726,14]
[377602306,1754448878026,-2354.23,0.00039726,14]
[377602307,1754448878035,-12433.87,0.00039726,14]
[377602308,1754448878044,-150.0,0.0003979,120]
[377602309,1754448878052,-1091.13,0.00039883,2]
[377602310,1754448878061,-1211.75,0.00039883,2]
[377602311,1754448878070,-212.15,0.00039883,2]
[377602312,1754448878079,-152.64,0.00039883,2]
[377602313,1754448878088,-370.84,0.00039883,2]
[377602314,1754448878097,-170.37,0.00039883,2]